fUSD/lending_fUSD_20260412
["ID","MTS","AMOUNT","RATE_DAILY","PERIOD"]
[420311070,1775947984399,-2257.22246377,0.00042,120]
[420311071,1775947984410,-500.0,0.00042,45]
[420311072,1775947984422,-266.11209067,0.00042,120]
[420311073,1775947984447,-500.0,0.00042,45]
[420311074,1775947984456,-500.0,0.00042,45]
[420311075,1775947984479,-305.4219743,0.00042,120]
[420311076,1775947984494,-366.48269493,0.00042,120]
[420311077,1775947984507,-500.0,0.00042,45]
[420311078,1775947984532,-340.93914134,0.00042,120]
[420311079,1775947984541,-371.61574699,0.00042,60]
[420311080,1775947984558,-500.0,0.00042,45]
[420311081,1775947984577,-500.0,0.00042,45]
[420311082,1775947984587,-500.0,0.00042,45]
[420311083,1775947984599,-30000.0,0.00042,30]
[420311084,1775947984612,-575.0,0.00042,120]
[420311085,1775947984629,-1000.0,0.00042,120]
[420311086,1775947984638,-1000.0,0.00042,120]
[420311087,1775947984648,-1000.0,0.00042,120]
[420311088,1775947984665,-1627.22,0.00042,60]
[420311089,1775947984679,-1465.43,0.00042,60]
[420311090,1775947984688,-691.51,0.00042,60]
[420311091,1775947984705,-2556.15,0.00042,30]
[420311092,1775947984718,-4289.50496552,0.00042,120]
[420311093,1775947984727,-755.87,0.00042,120]
[420311094,1775947984744,-1965.23718096,0.00042,30]
[420311095,1775947984759,-2000.0,0.00042,120]
[420311096,1775947984769,-150.01589489,0.00042,30]
[420311097,1775947984782,-7000.0,0.00042,30]
[420311098,1775947984926,-58247.39768355,0.00042,30]
[420311099,1775947984939,-344.0,0.00042,120]
[420311100,1775947984952,-150.0,0.00042,120]
[420311101,1775947984965,-300.0,0.00042,120]
[420311102,1775947984975,-500.0,0.00042,120]
[420311103,1775947984987,-1378.62716234,0.0004201,2]
[420311104,1775947985006,-172.06105035,0.0004201,30]
[420311105,1775947985016,-663.08735684,0.00042021,60]
[420311106,1775947985027,-1433.95,0.00042048,30]
[420311107,1775947985040,-183.58827612,0.0004205,2]
[420311108,1775947985057,-727.0,0.0004211,60]
[420311109,1775947985067,-616.73550132,0.00042121,120]
[420311110,1775947985078,-163.0,0.0004213,120]
[420311111,1775947985095,-250.0,0.00042166,91]
[420311112,1775947985105,-1433.95,0.00042167,30]
[420311113,1775947985115,-500.0,0.00042183,120]
[420311114,1775947985125,-2000.0,0.00042192,30]
[420311115,1775947985141,-200.0,0.00042199,90]
[420311116,1775947985151,-1500.0,0.00042199,90]
[420311117,1775947985161,-5691.68309454,0.000422,2]
[420311118,1775947985170,-3000.0,0.000422,15]
[420311119,1775947985183,-3000.0,0.000422,7]
[420311120,1775947985192,-3000.0,0.000422,7]
[420311121,1775947985202,-200.0,0.00042211,120]
[420311122,1775947985211,-21557.74,0.00042228,30]
[420311123,1775947985223,-157.08828878,0.00042239,2]
[420311124,1775947985234,-500.0,0.00042242,120]
[420311125,1775947985245,-200.0,0.00042279,66]
[420311126,1775947985255,-1500.0,0.00042279,66]
[420311127,1775947985264,-1433.95,0.00042287,30]
[420311128,1775947985274,-686.63,0.00042296,30]
[420311129,1775947985283,-123120.0,0.000423,60]
[420311130,1775947985293,-2000.0,0.000423,2]
[420311131,1775947985302,-203.85838449,0.00042357,120]
[420311132,1775947985313,-200.0,0.00042399,118]
[420311133,1775947985323,-1500.0,0.00042399,118]
[420311134,1775947985335,-2000.0,0.000424,118]
[420311135,1775947985345,-1473.73144126,0.000424,30]
[420311136,1775947985355,-160.0,0.000424,120]
[420311137,1775947985368,-1433.95,0.00042406,30]
[420311138,1775947985378,-188917.47333159,0.00042431,2]
[420311139,1775947985390,-1663.45,0.0004246,52]
[420311140,1775947985399,-1092.3,0.00042465,30]
[420311141,1775947985412,-200.0,0.00042465,100]
[420311142,1775947985422,-1500.0,0.00042465,100]
[420311143,1775947985433,-175.786841,0.00042466,120]
[420311144,1775947985445,-175.786841,0.00042466,120]
[420311145,1775947985459,-175.786841,0.00042466,120]
[420311146,1775947985469,-175.786841,0.00042466,120]
[420311147,1775947985481,-175.786841,0.00042466,120]
[420311148,1775947985494,-175.786841,0.00042466,120]
[420311149,1775947985503,-175.786841,0.00042466,120]
[420311150,1775947985515,-175.786841,0.00042466,120]
[420311151,1775947985524,-175.786841,0.00042466,120]
[420311152,1775947985537,-175.786841,0.00042466,120]
[420311153,1775947985546,-175.786841,0.00042466,120]
[420311154,1775947985560,-175.786841,0.00042466,120]
[420311155,1775947985574,-175.786841,0.00042466,120]
[420311156,1775947985584,-175.786841,0.00042466,120]
[420311157,1775947985593,-175.786841,0.00042466,120]
[420311158,1775947985612,-175.786841,0.00042466,120]
[420311159,1775947985622,-175.786841,0.00042466,120]
[420311160,1775947985631,-175.786841,0.00042466,120]
[420311161,1775947985644,-175.786841,0.00042466,120]
[420311162,1775947985660,-175.78684,0.00042466,120]
[420311163,1775947985671,-2000.0,0.00042466,30]
[420311164,1775947985680,-481.46,0.00042466,120]
[420311165,1775947985694,-500.0,0.00042466,120]
[420311166,1775947985711,-75350.76,0.00042487,4]
[420311167,1775947985721,-27766.68,0.00042487,4]
[420311168,1775947985733,-8260.13072239,0.00042499,30]
[420311169,1775947985745,-1235.18214925,0.00042499,30]
[420311170,1775947985756,-500.0,0.00042499,30]
[420311171,1775947985766,-623.58710448,0.00042499,30]
[420311172,1775947985784,-200.0,0.00042499,30]
[420311173,1775947985794,-181.08010149,0.00042499,30]
[420311174,1775947985809,-11992.05970149,0.00042499,30]
[420311175,1775947985826,-500.0,0.00042499,30]
[420311176,1775947985836,-151.0,0.00042499,30]
[420311177,1775947985848,-500.0,0.00042499,40]
[420311178,1775947985861,-1280.88388878,0.00042499,40]
[420311179,1775947985878,-200.0,0.00042499,30]
[420311180,1775947985892,-8565.75555911,0.00042499,40]
[420311181,1775947985906,-646.65982734,0.00042499,40]
[420311182,1775947985921,-200.0,0.00042499,40]
[420311183,1775947985936,-12435.76591045,0.00042499,40]
[420311184,1775947985952,-500.0,0.00042499,40]
[420311185,1775947985968,-151.0,0.00042499,40]
[420311186,1775947985979,-187.78006524,0.00042499,40]
[420311187,1775947985995,-200.0,0.00042499,40]
[420311188,1775947986006,-200.0,0.00042499,45]
[420311189,1775947986020,-200.0,0.00042499,60]
[420311190,1775947986032,-200.0,0.00042499,120]
[420311191,1775947986049,-500.0,0.00042499,30]
[420311192,1775947986065,-181.08010149,0.00042499,30]
[420311193,1775947986083,-500.0,0.00042499,40]
[420311194,1775947986104,-187.78006525,0.00042499,40]
[420311195,1775947986127,-160.0,0.00042499,30]
[420311196,1775947986156,-151.0,0.00042499,30]
[420311197,1775947986168,-162.65982942,0.00042499,40]
[420311198,1775947986206,-10000.0,0.00042499,30]
[420311199,1775947986222,-151.0,0.00042499,40]
[420311200,1775947986258,-4776.78944474,0.00042499,120]
[420311201,1775947986278,-1032.2381753,0.00042499,40]
[420311202,1775947986288,-599.60298507,0.00042499,30]
[420311203,1775947986300,-621.78829552,0.00042499,40]
[420311204,1775947986317,-500.0,0.00042499,30]
[420311205,1775947986327,-500.0,0.00042499,40]
[420311206,1775947986338,-181.08010149,0.00042499,30]
[420311207,1775947986351,-325.21299924,0.00042499,40]
[420311208,1775947986361,-1500.0,0.00042499,30]
[420311209,1775947986371,-1500.0,0.00042499,40]
[420311210,1775947986382,-1500.0,0.00042499,45]
[420311211,1775947986392,-1500.0,0.00042499,60]
[420311212,1775947986402,-170.0,0.00042499,30]
[420311213,1775947986413,-1500.0,0.00042499,120]
[420311214,1775947986423,-170.0,0.00042499,40]
[420311215,1775947986434,-151.0,0.00042499,30]
[420311216,1775947986445,-6980.0,0.000425,2]
[420311217,1775947986456,-4000.0,0.000425,7]
[420311218,1775947986466,-500.0,0.000425,45]
[420311219,1775947986477,-500.0,0.000425,45]
[420311220,1775947986487,-500.0,0.000425,45]
[420311221,1775947986498,-500.0,0.000425,45]
[420311222,1775947986509,-500.0,0.000425,45]
[420311223,1775947986519,-500.0,0.000425,45]
[420311224,1775947986531,-500.0,0.000425,45]
[420311225,1775947986542,-500.0,0.000425,45]
[420311226,1775947986554,-500.0,0.000425,45]
[420311227,1775947986568,-500.0,0.000425,45]
[420311228,1775947986584,-500.0,0.000425,45]
[420311229,1775947986593,-500.0,0.000425,45]
[420311230,1775947986607,-500.0,0.000425,45]
[420311231,1775947986617,-751.0,0.000425,120]
[420311232,1775947986635,-500.0,0.000425,45]
[420311233,1775947986648,-500.0,0.000425,45]
[420311234,1775947986657,-500.0,0.000425,45]
[420311235,1775947986674,-500.0,0.000425,45]
[420311236,1775947986684,-153.0,0.000425,120]
[420311237,1775947986694,-500.0,0.000425,45]
[420311238,1775947986704,-500.0,0.000425,45]
[420311239,1775947986723,-500.0,0.000425,45]
[420311240,1775947986733,-500.0,0.000425,45]
[420311241,1775947986744,-500.0,0.000425,45]
[420311242,1775947986755,-1763.05509298,0.000425,60]
[420311243,1775947986768,-500.0,0.000425,45]
[420311244,1775947986777,-500.0,0.000425,45]
[420311245,1775947986789,-500.0,0.000425,45]
[420311246,1775947986801,-9514.71052947,0.000425,30]
[420311247,1775947986813,-2000.0,0.000425,120]
[420311248,1775947986823,-2000.0,0.000425,120]
[420311249,1775947986838,-6986.47124988,0.000425,120]
[420311250,1775947986851,-1000.0,0.000425,120]
[420311251,1775947986867,-344.0,0.000425,120]
[420311252,1775947986881,-150.0,0.000425,120]
[420311253,1775947986898,-433.11366716,0.000425,30]
[420311254,1775947986911,-59851.73185299,0.000425,30]
[420311255,1775947986927,-500.0,0.000425,120]
[420311256,1775947986945,-157.08828878,0.00042513,2]
[420311257,1775947986966,-1433.95,0.00042525,30]
[420311258,1775947986980,-9500.0,0.000426,14]
[420311259,1775947987000,-1373.64465812,0.000426,120]
[420311260,1775947987014,-1433.95,0.00042644,30]
[420311261,1775947987025,-1000.0,0.00042684,120]
[420311262,1775947987036,-10566.39,0.00042689,4]
[420311263,1775947987058,-16865.76,0.00042689,4]
[420311264,1775947987068,-21557.74,0.00042709,30]
[420311265,1775947987079,-4000.0,0.0004274,14]
[420311266,1775947987095,-500.0,0.0004274,120]
[420311267,1775947987105,-500.0,0.0004274,120]
[420311268,1775947987115,-500.0,0.0004274,120]
[420311269,1775947987133,-500.0,0.0004274,120]
[420311270,1775947987146,-500.0,0.0004274,120]
[420311271,1775947987158,-500.0,0.0004274,120]
[420311272,1775947987181,-500.0,0.0004274,120]
[420311273,1775947987193,-500.0,0.0004274,120]
[420311274,1775947987209,-500.0,0.0004274,120]
[420311275,1775947987232,-500.0,0.0004274,120]
[420311276,1775947987247,-500.0,0.0004274,120]
[420311277,1775947987258,-500.0,0.0004274,120]
[420311278,1775947987273,-500.0,0.0004274,120]
[420311279,1775947987288,-500.0,0.0004274,120]
[420311280,1775947987300,-500.0,0.0004274,120]
[420311281,1775947987312,-500.0,0.0004274,120]
[420311282,1775947987326,-500.0,0.0004274,120]
[420311283,1775947987343,-500.0,0.0004274,120]
[420311284,1775947987361,-500.0,0.0004274,120]
[420311285,1775947987371,-500.0,0.0004274,120]
[420311286,1775947987385,-500.0,0.0004274,120]
[420311287,1775947987405,-500.0,0.0004274,120]
[420311288,1775947987416,-500.0,0.0004274,120]
[420311289,1775947987428,-500.0,0.0004274,120]
[420311290,1775947987447,-500.0,0.0004274,120]
[420311291,1775947987457,-500.0,0.0004274,120]
[420311292,1775947987467,-500.0,0.0004274,120]
[420311293,1775947987489,-500.0,0.0004274,120]
[420311294,1775947987499,-500.0,0.0004274,120]
[420311295,1775947987508,-500.0,0.0004274,120]
[420311296,1775947987520,-500.0,0.0004274,120]
[420311297,1775947987533,-500.0,0.0004274,120]
[420311298,1775947987543,-500.0,0.0004274,120]
[420311299,1775947987553,-500.0,0.0004274,120]
[420311300,1775947987563,-500.0,0.0004274,120]
[420311301,1775947987576,-500.0,0.0004274,120]
[420311302,1775947987586,-500.0,0.0004274,120]
[420311303,1775947987596,-500.0,0.0004274,120]
[420311304,1775947987605,-500.0,0.0004274,120]
[420311305,1775947987619,-500.0,0.0004274,120]
[420311306,1775947987629,-500.0,0.0004274,120]
[420311307,1775947987639,-500.0,0.0004274,120]
[420311308,1775947987648,-500.0,0.0004274,120]
[420311309,1775947987664,-500.0,0.0004274,120]
[420311310,1775947987673,-500.0,0.0004274,120]
[420311311,1775947987684,-500.0,0.0004274,120]
[420311312,1775947987693,-500.0,0.0004274,120]
[420311313,1775947987708,-500.0,0.0004274,120]
[420311314,1775947987718,-500.0,0.0004274,120]
[420311315,1775947987733,-500.0,0.0004274,120]
[420311316,1775947987743,-500.0,0.0004274,120]
[420311317,1775947988316,-500.0,0.0004274,120]
[420311318,1775947988382,-500.0,0.0004274,120]
[420311319,1775947988395,-500.0,0.0004274,120]
[420311320,1775947988433,-500.0,0.0004274,120]
[420311321,1775947988478,-500.0,0.0004274,120]
[420311322,1775947988493,-500.0,0.0004274,120]
[420311323,1775947988521,-500.0,0.0004274,120]
[420311324,1775947988536,-500.0,0.0004274,120]
[420311325,1775947988554,-500.0,0.0004274,120]
[420311326,1775947988575,-500.0,0.0004274,120]
[420311327,1775947988592,-500.0,0.0004274,120]
[420311328,1775947988607,-605.17368117,0.0004274,120]
[420311329,1775947988623,-2000.0,0.0004274,30]
[420311330,1775947988637,-1433.95,0.00042763,30]
[420311331,1775947988651,-150.0,0.00042781,30]
[420311332,1775947988663,-2149.04,0.00042781,120]
[420311333,1775947988675,-1064.91,0.00042781,120]
[420311334,1775947988685,-157.08828878,0.00042787,2]
[420311335,1775947988704,-10000.0,0.000428,120]
[420311336,1775947988715,-12286.0,0.000428,60]
[420311337,1775947988728,-1000.0,0.00042831,120]
[420311338,1775947988741,-1000.0,0.00042831,120]
[420311339,1775947988751,-5000.0,0.00042834,2]
[420311340,1775947988763,-250.0,0.0004285,103]
[420311341,1775947988773,-2245.34107028,0.0004287,5]
[420311342,1775947988789,-3000.0,0.00042872,30]
[420311343,1775947988800,-3000.0,0.00042872,30]
[420311344,1775947988810,-3000.0,0.00042872,30]
[420311345,1775947988824,-3000.0,0.00042872,30]
[420311346,1775947988836,-3000.0,0.00042872,30]
[420311347,1775947988851,-3000.0,0.00042872,30]
[420311348,1775947988863,-3000.0,0.00042872,30]
[420311349,1775947988874,-3000.0,0.00042872,30]
[420311350,1775947988888,-3000.0,0.00042872,30]
[420311351,1775947988901,-3000.0,0.00042872,30]
[420311352,1775947988911,-3000.0,0.00042872,30]
[420311353,1775947988923,-1230.2685505,0.00042872,30]
[420311354,1775947988951,-1433.95,0.00042882,30]
[420311355,1775947988963,-1099.5,0.00042886,30]
[420311356,1775947988992,-501.17187868,0.00042887,30]
[420311357,1775947989005,-345.76872502,0.000429,120]
[420311358,1775947989025,-5027.15534599,0.000429,30]
[420311359,1775947989053,-73000.0,0.0004291,60]
[420311360,1775947989077,-191.33836182,0.00042922,30]
[420311361,1775947989094,-202.0,0.0004295,30]
[420311362,1775947989109,-2949.93660605,0.00042989,38]
[420311363,1775947989120,-10000.0,0.0004299,90]
[420311364,1775947989144,-10000.0,0.00042992,110]
[420311365,1775947989160,-10000.0,0.00042993,110]
[420311366,1775947989174,-214.0,0.00043,7]
[420311367,1775947989200,-5000.0,0.00043,7]
[420311368,1775947989211,-5000.0,0.00043,7]
[420311369,1775947989226,-47060.9283989,0.00043,30]
[420311370,1775947989243,-50000.0,0.00043,30]
[420311371,1775947989255,-150.0,0.00043,2]
[420311372,1775947989273,-2504.64497832,0.00043,120]
[420311373,1775947989287,-353449.09,0.00043,7]
[420311374,1775947989297,-2267.08,0.00043,120]
[420311375,1775947989319,-180771.24218379,0.00043,90]
[420311376,1775947989332,-2279.53806,0.00043,90]
[420311377,1775947989342,-151.0,0.00043,120]
[420311378,1775947989363,-767.27888372,0.00043,120]
[420311379,1775947989373,-1337.19024101,0.00043,30]
[420311380,1775947989385,-25000.0,0.00043,30]
[420311381,1775947989398,-86000.0,0.00043,120]
[420311382,1775947989409,-4716.44407075,0.00043,120]
[420311383,1775947989419,-2188.398006,0.00043,120]
[420311384,1775947989431,-30000.0,0.00043,120]
[420311385,1775947989443,-30000.0,0.00043,120]
[420311386,1775947989453,-30000.0,0.00043,120]
[420311387,1775947989464,-30000.0,0.00043,120]
[420311388,1775947989474,-30000.0,0.00043,120]
[420311389,1775947989487,-30000.0,0.00043,120]
[420311390,1775947989496,-30000.0,0.00043,120]
[420311391,1775947989510,-30000.0,0.00043,120]
[420311392,1775947989519,-1002.368944,0.00043,120]
[420311393,1775947989530,-1000.0,0.00043,120]
[420311394,1775947989543,-1000.0,0.00043,120]
[420311395,1775947989556,-1000.0,0.00043,120]
[420311396,1775947989566,-1000.0,0.00043,120]
[420311397,1775947989578,-2041.8824399,0.00043,120]
[420311398,1775947989605,-818197.22189221,0.00043,30]
[420311399,1775947990857,-5456.15904389,0.00043,30]
[420311400,1775947990871,-7050.38647456,0.00043,30]
[420311401,1775947990898,-151.0,0.00024658,2]
[420311402,1775947990910,-225.30708,0.00024658,2]
[420311403,1775947990922,-109444.22118833,0.00043,30]
[420311404,1775947990934,-577.0,0.00043,30]
[420311405,1775947990966,-151.0,0.00024658,2]
[420311406,1775947990976,-151.0,0.00024658,2]
[420311407,1775947990985,-1587.55425282,0.00043,30]
[420311408,1775948073177,5932.8,0.0003013,120]
[420311409,1775948168422,2739.445,0.0003013,120]
[420311424,1775949033150,-184.59,9.44e-05,2]
[420311425,1775949033174,-166.33063082,0.00010283,2]
[420311426,1775949033189,-219.20104783,0.00010383,2]
[420311427,1775949033213,-980.79895217,0.00010383,2]
[420311428,1775949033229,-193.0,0.00010384,2]
[420311429,1775949033244,-5000.0,0.00010384,2]
[420311430,1775949033266,-2614.886,0.00010602,2]
[420311431,1775949033275,-178.473,0.00010602,2]
[420311432,1775949033295,-5582.376865,0.00011364,2]
[420311433,1775949033307,-1269.0,0.00011421,2]
[420311434,1775949033318,-150.0,0.000129,2]
[420311435,1775949033342,-250.0,0.00013,2]
[420311436,1775949033357,-151.0,0.00013089,2]
[420311437,1775949033372,-3074.0,0.00013699,2]
[420311438,1775949033394,-150.0,0.00013946,2]
[420311439,1775949033408,-8269.73340528,0.00013947,2]
[420311440,1775949033442,-49096.36641383,0.00013947,2]
[420311441,1775949033461,-3552.91671984,0.00013947,2]
[420311442,1775949033489,-605.6100191,0.00013947,2]
[420311443,1775949033518,-805.47043148,0.00013947,2]
[420311444,1775949033540,-4251.43891047,0.00013947,2]
[420311445,1775949033562,-210.52748993,0.00014034,2]
[420311448,1775949033589,-41.40251007,0.00014034,2]
[420311449,1775949033609,-484.39424034,0.00014047,2]
[420311450,1775949033663,-1606.12387378,0.00014047,2]
[420311451,1775949033694,-958.35718436,0.00014047,2]
[420311452,1775949033710,-357.53470152,0.00014047,2]
[420311454,1775949033726,-1600.0,0.00014062,2]
[420311456,1775949033738,-500.0,0.00014067,2]
[420311458,1775949033748,-2069.30198409,0.00014085,2]
[420311460,1775949033762,-485.4185,0.00014085,2]
[420311462,1775949033778,-666.37951591,0.00014085,2]
[420311464,1775949033787,-184.59,0.0001416,2]
[420311466,1775949033796,-200.0,0.00014339,2]
[420311468,1775949033808,-200.0,0.0001438,2]
[420311470,1775949033821,-577.74,0.00014752,2]
[420311472,1775949033831,-914.55,0.00014786,2]
[420311473,1775949033841,-300.0,0.00015,2]
[420311475,1775949033850,-255.0,0.00015061,2]
[420311477,1775949033867,-299.07068734,0.00015189,4]
[420311479,1775949033878,-168.0,0.00015325,2]
[420311481,1775949033889,-168.0,0.00015406,2]
[420311483,1775949033898,-500.0,0.00015499,2]
[420311485,1775949033910,-478.51309976,0.00015499,4]
[420311486,1775949033921,-418.69896229,0.00015499,4]
[420311488,1775949033933,-500.0,0.00015499,2]
[420311490,1775949033942,-168.0,0.0001551,2]
[420311492,1775949033962,-500.0,0.00015599,2]
[420311494,1775949033974,-500.0,0.00015599,2]
[420311496,1775949033984,-500.0,0.00015599,2]
[420311498,1775949034000,-168.0,0.00015644,2]
[420311500,1775949034017,-168.0,0.00015646,2]
[420311502,1775949034026,-168.0,0.00015715,2]
[420311503,1775949034058,-1600.0,0.0001582,2]
[420311506,1775949034068,-10000.0,0.000159,2]
[420311507,1775949034097,-6777.4493,0.000159,2]
[420311509,1775949034109,-2500.0,0.000159,2]
[420311512,1775949034126,-3315.46458366,0.0001594,2]
[420311513,1775949034154,-500.0,0.00015999,2]
[420311515,1775949034180,-500.0,0.00015999,2]
[420311517,1775949034195,-500.0,0.00015999,2]
[420311519,1775949034207,-500.0,0.00015999,2]
[420311521,1775949034228,-500.0,0.00015999,2]
[420311524,1775949034252,-327.01017138,0.00015999,2]
[420311525,1775949034267,-500.0,0.00015999,2]
[420311528,1775949034290,-500.0,0.00015999,2]
[420311529,1775949034307,-500.0,0.00015999,2]
[420311532,1775949034329,-386.46194155,0.00015999,2]
[420311534,1775949034340,-500.0,0.00015999,2]
[420311535,1775949034361,-485.45503785,0.00015999,2]
[420311537,1775949034377,-313.53606452,0.00015999,2]
[420311539,1775949034391,-500.0,0.00015999,2]
[420311541,1775949034408,-500.0,0.00015999,2]
[420311543,1775949034417,-500.0,0.00015999,2]
[420311545,1775949034427,-500.0,0.00015999,2]
[420311546,1775949034446,-500.0,0.00015999,2]
[420311547,1775949034461,-500.0,0.00015999,2]
[420311548,1775949034470,-500.0,0.00015999,2]
[420311549,1775949034492,-500.0,0.00015999,2]
[420311550,1775949034506,-278.34859617,0.00015999,2]
[420311551,1775949034515,-500.0,0.00015999,2]
[420311552,1775949034527,-500.0,0.00015999,2]
[420311553,1775949034540,-500.0,0.00015999,2]
[420311554,1775949034552,-500.0,0.00015999,2]
[420311555,1775949034561,-500.0,0.00015999,2]
[420311556,1775949034573,-500.0,0.00015999,2]
[420311557,1775949034593,-317.26300576,0.00015999,2]
[420311558,1775949034603,-500.0,0.00015999,2]
[420311559,1775949034615,-500.0,0.00015999,2]
[420311560,1775949034633,-500.0,0.00015999,2]
[420311561,1775949034644,-500.0,0.00015999,2]
[420311562,1775949034654,-500.0,0.00015999,2]
[420311563,1775949034663,-500.0,0.00015999,2]
[420311564,1775949034684,-184.62356645,0.00015999,2]
[420311565,1775949034694,-293.95021677,0.00015999,2]
[420311566,1775949034704,-499.99999999,0.00015999,2]
[420311567,1775949034723,-591.7692525,0.00015999,2]
[420311568,1775949034733,-51902.12599808,0.00016,2]
[420311572,1775949038123,-959.25942,0.00016,2]
[420311573,1775949038148,-400.93977782,0.00016,2]
[420311575,1775949038211,-1094.0,0.00016,2]
[420311576,1775949038245,-2000.0,0.00016,2]
[420311577,1775949038284,-73258.39809996,0.00016,2]
[420311578,1775949038303,-1020.29583807,0.00016,2]
[420311579,1775949038329,-701.74242901,0.00016,2]
[420311580,1775949038426,-526.50344134,0.00016,2]
[420311581,1775949038463,-1105.8659897,0.00016,2]
[420311610,1775949040484,-474.24616922,0.00016,2]
[420311611,1775949041182,-170446.74380737,0.00016,2]
[420311612,1775949041197,-324.0815859,0.00016,2]
[420311613,1775949041233,-2926.78869026,0.00016,2]
[420311657,1775949043369,-73080.0,0.00016,2]
[420311658,1775949043424,-1042.6938419,0.00016,2]
[420311692,1775949047510,-496.57578806,0.0001568,2]
[420311693,1775949047520,-2852.15804524,0.00016,2]
[420311694,1775949047543,-454.96250361,0.00016,2]
[420311695,1775949047554,-448.87113101,0.00016,2]
[420311696,1775949047566,-2701.44760208,0.00016,2]
[420311697,1775949047597,-9150.72976221,0.00016,2]
[420311698,1775949047611,-2658.00000427,0.00016,2]
[420311699,1775949047640,-2190.89297652,0.00016,2]
[420311700,1775949103230,159.55979868,0.0003013,120]
[420311701,1775949178453,817.489667,0.000245,120]
[420311702,1775949247599,500.0,0.0003013,120]
[420311703,1775949356097,2595.777659,0.00023359,120]
[420311704,1775949441785,240.867492,0.0002254,120]
[420311705,1775949484477,677.813065,0.00022368,120]
[420311706,1775949568178,922.727787,0.00021921,120]
[420311707,1775949922915,500.0,0.00029999,120]
[420311708,1775950044222,500.0,0.00029999,120]
[420311709,1775950123940,6828.0,0.00030137,120]
[420311711,1775950147306,352.0,0.00030137,120]
[420311713,1775950181594,510.0,0.00030137,120]
[420311714,1775950215065,510.0,0.00030137,120]
[420311718,1775950232185,-250.0,0.00013,2]
[420311719,1775950232210,-150.0,0.00013698,2]
[420311720,1775950232220,-184.47467264,0.00013699,30]
[420311721,1775950232230,-150.0,0.00013699,2]
[420311722,1775950232243,-150.0,0.00013699,2]
[420311723,1775950232253,-150.0,0.00013699,2]
[420311724,1775950232262,-150.0,0.00013699,2]
[420311725,1775950232276,-150.0,0.00013699,2]
[420311726,1775950232286,-150.0,0.00013699,2]
[420311727,1775950232297,-150.0,0.00013699,2]
[420311728,1775950232306,-150.0,0.00013699,2]
[420311729,1775950232338,-215.52532736,0.00013699,2]
[420311730,1775950232351,-723.749995,0.00013699,2]
[420311731,1775950232395,-696.20302202,0.00013699,2]
[420311732,1775950232430,-699.49483532,0.00013699,2]
[420311733,1775950232541,-739.0268203,0.00013699,2]
[420311734,1775950232550,-92.62275841,0.00013699,2]
[420311735,1775950232562,-74.03724159,0.00013699,2]
[420311736,1775950232578,-150.0,0.000138,2]
[420311737,1775950232587,-2548.43771755,0.000138,2]
[420311738,1775950232602,-1895.78926475,0.000138,2]
[420311739,1775950232617,-550.23948953,0.000138,2]
[420311740,1775950232654,-472.0526679,0.000138,2]
[420311765,1775950238369,-898.06061579,0.000138,2]
[420311766,1775950238395,-1188.74622491,0.000138,2]
[420311767,1775950238463,-944.33,0.000138,2]